bitfinex/quotes_ETHUSD_20250411
["timestamp","ask_amount","ask_price","bid_price","bid_amount"]
[1744338212086,0.8093,1538.4,1538.2,6.06]
[1744338212278,0.8093,1538.6,1538.4,6.50002]
[1744338212508,0.8093,1538.8,1538.6,6.49941]
[1744338212653,7.3067,1539.1,1538.7,6.49882]
[1744338212848,7.3067,1539.1,1538.7,7.148702]
[1744338213045,13.80425,1539.1,1538.7,7.148702]
[1744338213389,8.2653,1539.1,1538.8,7.10116264]
[1744338213589,7.456,1539.1,1538.9,6.49797]
[1744338213883,7.456,1539.1,1538.9,7.88964264]
[1744338214251,7.456,1539.1,1538.9,7.28687]
[1744338215167,7.456,1539.1,1539.0,0.60360408]
[1744338216988,8.2466,1539.5,1539.2,6.49667]
[1744338217351,8.2466,1539.5,1539.3,0.60360408]
[1744338217953,8.2466,1539.5,1539.2,6.49667]
[1744338218483,8.2466,1539.5,1539.3,6.49618]
[1744338218683,8.2466,1539.5,1539.2,6.49683]
[1744338218846,8.2466,1539.5,1539.2,12.99348]
[1744338219046,8.2466,1539.5,1539.2,13.89866311]
[1744338219245,8.2466,1539.5,1539.3,0.60379551]
[1744338219663,8.2466,1539.5,1539.1,6.49727]
[1744338219987,8.2466,1539.5,1539.2,0.60336355]
[1744338220207,14.74253,1539.5,1539.2,0.73362919]
[1744338220374,8.2466,1539.5,1539.3,6.49635]
[1744338220577,7.456,1539.5,1539.3,6.49635]
[1744338220791,7.456,1539.5,1539.4,6.62649146]
[1744338221204,7.2854,1539.7,1539.4,7.22923671]
[1744338221587,7.2854,1539.7,1539.4,6.62649146]
[1744338223289,19.07619482,1539.8,1539.4,6.62649146]
[1744338223290,7.455,1539.8,1539.5,0.7797]
[1744338223479,7.455,1539.8,1539.5,7.27516]
[1744338223811,7.455,1539.8,1539.6,0.12915615]
[1744338225003,7.455,1539.8,1539.6,6.62433615]
[1744338225195,7.455,1539.8,1539.6,14.15112452]
[1744338225512,8.255,1540.2,1539.6,7.65594452]
[1744338225666,13.38171482,1540.8,1539.9,0.7797]
[1744338226010,6.49097,1540.6,1540.1,7.27269]
[1744338226207,0.649097,1540.6,1540.1,8.36000472]
[1744338226370,6.49057,1540.7,1540.3,6.49223]
[1744338226972,6.49057,1540.7,1540.4,0.12517705]
[1744338227294,0.33856467,1540.7,1540.5,6.49108]
[1744338227702,6.48982,1540.9,1540.5,6.49108]
[1744338227892,7.2903,1541.0,1540.5,7.7479478]
[1744338228105,0.801,1541.0,1540.6,6.49067]
[1744338228296,14.7422,1541.3,1540.8,6.49011]
[1744338228511,14.7422,1541.3,1540.6,3.7797]
[1744338228512,6.48889,1541.1,1540.6,10.75730839]
[1744338228855,14.7424,1541.3,1540.7,7.56586084]
[1744338229017,14.7424,1541.3,1540.7,1.07573084]
[1744338229201,6.48941,1541.0,1540.6,1.26637839]
[1744338229400,6.49009,1540.9,1540.6,0.7797]
[1744338230311,6.49041,1540.8,1540.4,0.7797]
[1744338230492,6.49137,1540.6,1540.1,7.27277]
[1744338230821,12.98275,1540.6,1540.1,7.27277]
[1744338230979,6.49142,1540.5,1540.1,8.000047]
[1744338231335,6.49137,1540.6,1540.1,8.000047]
[1744338232087,12.98264,1540.6,1540.1,8.000047]
[1744338232275,6.49132,1540.6,1540.1,8.49209915]
[1744338233194,6.49144,1540.5,1540.1,8.49209915]
[1744338233397,6.49144,1540.5,1540.1,1.99902915]
[1744338233590,6.49186,1540.4,1540.1,0.7797]
[1744338233805,6.49186,1540.4,1540.0,4.77089511]
[1744338233806,6.49224,1540.3,1540.0,4.77089511]
[1744338234007,6.49308,1540.1,1540.0,4.77089511]
[1744338234216,6.49352,1540.0,1539.7,0.7842]
[1744338234782,12.98735,1540.0,1539.7,0.7842]
[1744338235199,6.49352,1540.0,1539.7,0.7842]
[1744338235404,9.313602,1540.0,1539.5,5.55509511]
[1744338235640,6.49411,1539.9,1539.5,5.55509511]
[1744338235814,9.313372,1540.0,1539.5,5.55509511]
[1744338236146,9.313372,1540.0,1539.6,6.49499]
[1744338236441,7.26971,1540.0,1539.5,12.05041511]
[1744338236829,13.76356,1540.0,1539.5,12.05041511]
[1744338237231,13.76356,1540.0,1539.5,7.27952]
[1744338237422,6.49393,1539.9,1539.5,7.27952]
[1744338238443,7.26971,1540.0,1539.5,7.27952]
[1744338238621,7.26971,1540.0,1539.5,15.152384]
[1744338238934,7.26971,1540.0,1539.5,8.657064]
[1744338239140,13.94311,1540.1,1539.6,6.49503]
[1744338239306,13.94311,1540.1,1539.6,12.98993]
[1744338239502,7.25819,1540.2,1539.7,6.49461]
[1744338239743,7.25819,1540.2,1539.8,1.429561]
[1744338239744,14.70919,1540.2,1539.8,1.429561]
[1744338239943,7.451,1540.2,1539.8,7.923861]
[1744338240108,7.451,1540.3,1540.0,6.49325]
[1744338240310,6.49097,1540.7,1540.2,6.49236]
[1744338240535,20.4335,1540.6,1540.1,7.27315]
[1744338240841,6.49145,1540.5,1540.1,8.64981]
[1744338241649,6.49145,1540.5,1540.1,8.6496]
[1744338241817,6.49145,1540.5,1540.2,6.49264]
[1744338242841,6.49145,1540.5,1540.1,8.6496]
[1744338243253,7.25579,1540.8,1540.3,6.49199]
[1744338243415,6.49029,1540.8,1540.4,7.920859]
[1744338243618,6.49116,1540.6,1540.4,1.429299]
[1744338243875,13.93004,1540.9,1540.4,1.429299]
[1744338243876,6.49017,1540.8,1540.4,7.2717]
[1744338244020,13.92971,1540.9,1540.5,6.49137]
[1744338244343,13.92971,1540.9,1540.5,12.98257]
[1744338244522,6.48971,1540.9,1540.5,12.98238]
[1744338244719,7.2544,1541.1,1540.6,7.789008]
[1744338244924,6.4889,1541.1,1540.8,0.7801]
[1744338246328,6.4889,1541.1,1540.8,7.27017]
[1744338246544,6.4889,1541.1,1540.8,0.7801]
[1744338246851,6.48944,1541.0,1540.8,0.7801]
[1744338247057,13.9275,1541.2,1540.8,0.7801]
[1744338247359,7.439,1541.2,1541.0,6.48925]
[1744338248121,6.48759,1541.5,1541.0,6.48925]
[1744338248327,13.92528,1541.5,1541.1,6.48853]
[1744338248522,7.438,1541.5,1540.8,3.77666003]
[1744338248841,6.48895,1541.1,1540.9,0.7801]
[1744338249047,6.48895,1541.1,1540.7,14.2567403]
[1744338249253,6.48866,1541.2,1540.7,14.2567403]
[1744338249447,12.97736,1541.2,1540.7,14.2567403]
[1744338249625,12.97736,1541.2,1540.8,6.49013]
[1744338249828,7.25368,1541.3,1540.9,6.48956]
[1744338250743,13.74197,1541.3,1540.9,6.48956]
[1744338250946,6.48852,1541.2,1540.8,7.91553503]
[1744338251147,7.2536,1541.3,1540.8,7.91572503]
[1744338251461,7.438,1541.5,1541.2,6.48827]
[1744338251830,15.317936,1541.5,1541.1,6.48883]
[1744338252166,7.438,1541.5,1541.2,6.48823]
[1744338252635,7.438,1541.5,1541.0,3.7957]
[1744338252636,6.48828,1541.3,1541.0,3.7957]
[1744338252957,6.48828,1541.3,1541.0,7.28498]
[1744338253362,6.48768,1541.4,1541.0,13.77404]
[1744338253565,15.016866,1541.4,1541.0,7.28476]
[1744338253757,7.25088,1541.3,1540.9,6.48968]
[1744338254065,6.48853,1541.2,1540.8,17.77141503]
[1744338254562,6.48946,1541.0,1540.8,6.8557]
[1744338254764,6.48891,1541.1,1540.8,6.8557]
[1744338254969,6.48891,1541.1,1540.8,0.7957]
[1744338255138,6.48948,1541.0,1540.6,7.28665]
[1744338255328,6.48948,1541.0,1540.6,14.506095]
[1744338255529,13.92494,1541.1,1540.7,6.4902]
[1744338255829,13.92494,1541.1,1540.7,12.98059]
[1744338256044,20.41413,1541.1,1540.7,6.4902]
[1744338256324,6.48936,1541.0,1540.6,8.50925113]
[1744338256530,6.48996,1540.9,1540.6,0.7957]
[1744338257240,8.644676,1541.0,1540.6,7.28633]
[1744338257436,0.7628,1541.0,1540.6,7.28633]
[1744338257739,13.92502,1541.1,1540.7,6.49041]
[1744338257740,20.41427,1541.1,1540.7,6.49041]
[1744338257923,13.92502,1541.1,1540.7,6.49041]
[1744338258328,20.41417,1541.1,1540.7,6.49041]
[1744338258730,20.41417,1541.1,1540.9,6.4895]
[1744338258731,7.436,1541.1,1540.9,6.4895]
[1744338258935,7.436,1541.1,1540.9,13.70745]
[1744338259253,7.436,1541.1,1541.0,6.48929]
[1744338259925,13.92366,1541.4,1541.0,12.97858]
[1744338260424,20.41151,1541.4,1541.0,6.48929]
[1744338260626,20.41151,1541.4,1541.0,12.9784]
[1744338260831,20.41151,1541.4,1541.0,14.349092]
[1744338261027,13.92366,1541.4,1541.1,0.7957]
[1744338261232,7.436,1541.4,1541.1,7.28453]
[1744338261426,7.436,1541.4,1541.1,7.28436]
[1744338261670,13.92362,1541.4,1541.1,8.25778052]
[1744338261869,7.436,1541.4,1541.1,13.77308]
[1744338262195,6.48695,1541.6,1541.2,6.48818]
[1744338262474,12.97396,1541.6,1541.2,6.48818]
[1744338262970,12.97395,1541.6,1541.2,6.48818]
[1744338263158,6.48722,1541.5,1541.2,6.48818]
[1744338263871,6.48695,1541.6,1541.2,6.48818]
[1744338264372,7.24975,1541.6,1541.2,6.48818]
[1744338265063,7.24975,1541.6,1541.2,12.97647]
[1744338265786,6.48767,1541.4,1541.1,7.28452]
[1744338265992,6.48767,1541.4,1541.1,0.7957]
[1744338267504,6.48862,1541.2,1540.9,7.28038]
[1744338267787,15.220173,1541.4,1540.9,3.7907]
[1744338267962,13.92268,1541.4,1541.0,12.97832]
[1744338268163,7.435,1541.4,1541.1,6.48879]
[1744338268363,7.435,1541.4,1541.2,0.7907]
[1744338268682,7.435,1541.4,1541.2,13.76725]
[1744338268898,7.435,1541.4,1541.2,7.27895]
[1744338269387,7.435,1541.4,1541.3,0.59987324]
[1744338269886,7.435,1541.4,1541.3,7.08789324]
[1744338270391,0.33836604,1542.0,1541.7,6.48613]
[1744338270551,6.48514,1542.0,1541.7,7.27683]
[1744338270891,21.2259,1542.1,1541.7,7.27683]
[1744338271062,22.700002,1542.1,1541.7,7.27683]
[1744338271264,16.215122,1542.1,1541.7,13.76296]
[1744338271462,22.700042,1542.1,1541.7,7.27683]
[1744338272188,22.700042,1542.1,1541.8,0.59889587]
[1744338272552,22.700042,1542.1,1541.4,9.97513282]
[1744338272553,8.7550942,1542.0,1541.5,0.7907]
[1744338272778,6.48587,1541.9,1541.5,7.27769]
[1744338272972,12.97161,1541.9,1541.6,0.59903969]
[1744338273712,6.48574,1541.9,1541.6,0.59903969]
[1744338273926,12.97147,1541.9,1541.6,0.59903969]
[1744338274113,6.48573,1541.9,1541.6,7.08565969]
[1744338274283,6.48512,1542.0,1541.7,6.48633]
[1744338275807,14.741,1542.1,1541.7,12.97253]
[1744338275985,13.9187,1542.1,1541.8,0.7907]
[1744338276185,6.48565,1541.9,1541.6,6.48671]
[1744338276408,6.48542,1542.0,1541.6,6.48659]
[1744338276578,6.48542,1542.0,1541.7,6.48632]
[1744338278216,13.91873,1542.1,1541.8,0.7907]
[1744338278710,20.40363,1542.1,1541.8,0.7907]
[1744338279211,13.91873,1542.1,1541.8,0.7907]
[1744338279814,13.91873,1542.1,1541.7,12.97249]
[1744338279972,9.556535,1542.1,1541.4,3.7907]
[1744338280184,12.97078,1542.0,1541.6,6.48662]
[1744338280392,6.4855,1541.9,1541.6,6.48662]
[1744338280586,6.48602,1541.8,1541.5,1.38863236]
[1744338280895,12.972,1541.8,1541.5,0.7907]
[1744338281109,6.48515,1542.0,1541.5,7.27767]
[1744338281292,6.48566,1541.9,1541.6,6.48663]
[1744338281488,6.48566,1541.9,1541.5,8.005437]
[1744338281693,6.48608,1541.8,1541.5,0.7907]
[1744338282411,6.48649,1541.7,1541.5,0.7907]
[1744338283230,12.97304,1541.7,1541.5,0.7907]
[1744338283384,0.8062,1541.9,1541.3,0.7934]
[1744338283586,6.48738,1541.5,1541.3,0.7934]
[1744338283824,6.4868,1541.6,1541.3,0.7934]
[1744338284299,6.48719,1541.5,1541.3,0.7934]
[1744338284729,12.97459,1541.5,1541.3,0.7934]
[1744338285031,12.97459,1541.5,1541.1,0.7934]
[1744338285032,6.48849,1541.2,1541.1,0.7934]
[1744338285215,6.48767,1541.4,1541.1,7.28212]
[1744338285422,6.48767,1541.4,1541.1,7.88121765]
[1744338285822,6.48767,1541.4,1541.1,7.28212]
[1744338286032,6.48767,1541.4,1541.1,8.659246]
[1744338286332,6.48721,1541.5,1541.1,15.147896]
[1744338286508,12.97466,1541.5,1541.1,8.659176]
[1744338286707,6.48761,1541.4,1541.1,8.659176]
[1744338287429,12.97474,1541.5,1541.1,8.659176]
[1744338287617,12.97381,1541.6,1541.2,7.3541776]
[1744338287826,6.48723,1541.5,1541.2,7.3541776]
[1744338288142,6.48676,1541.6,1541.2,7.3543076]
[1744338288143,12.97374,1541.6,1541.2,7.3543076]
[1744338288306,6.48682,1541.6,1541.2,13.8425376]
[1744338288506,6.48682,1541.6,1541.3,7.88081007]
[1744338288931,12.97383,1541.6,1541.3,0.7934]
[1744338289127,6.48682,1541.6,1541.3,0.7934]
[1744338289329,6.48682,1541.6,1541.3,7.28141]
[1744338289843,6.48682,1541.6,1541.3,8.74496576]
[1744338290039,6.48724,1541.5,1541.3,0.7934]
[1744338290247,12.97474,1541.5,1541.3,0.7934]
[1744338290740,12.91243396,1541.8,1541.1,0.7934]
[1744338290741,6.48821,1541.3,1541.1,0.7934]
[1744338290905,12.97476,1541.5,1541.1,7.28203]
[1744338291106,12.97476,1541.5,1541.1,8.310233]
[1744338291298,6.48761,1541.4,1541.1,8.310233]
[1744338291539,6.48761,1541.4,1541.2,0.60005914]
[1744338291834,12.97551,1541.4,1541.2,0.60005914]
[1744338292011,6.48802,1541.3,1541.2,0.60005914]
[1744338292214,6.48802,1541.3,1541.1,0.7934]
[1744338292417,12.97558,1541.4,1541.1,0.7934]
[1744338292814,6.48761,1541.4,1541.1,0.7934]
[1744338293006,6.48761,1541.4,1541.2,0.60005154]
[1744338293642,12.97473,1541.5,1541.1,7.28205]
[1744338293843,6.48762,1541.4,1541.1,0.7934]
[1744338294010,12.97561,1541.4,1541.1,0.7934]
[1744338294341,6.48762,1541.4,1541.1,1.821663]
[1744338294844,12.97545,1541.4,1541.1,1.821663]
[1744338295018,12.97545,1541.4,1541.1,0.7934]
[1744338295222,6.48762,1541.4,1541.1,0.7934]
[1744338296049,6.48726,1541.5,1541.1,0.7934]
[1744338296347,25.52190482,1541.8,1541.4,7.26223]
[1744338296547,6.4864,1541.7,1541.4,0.7749]
[1744338297347,12.54971482,1541.8,1541.5,6.4869]
[1744338297510,19.03584482,1541.8,1541.5,6.4869]
[1744338298845,20.39528,1541.8,1541.5,6.4869]
[1744338299047,6.48635,1541.7,1541.4,8.637511]
[1744338299246,6.48635,1541.7,1541.4,2.149971]
[1744338299540,13.909,1541.8,1541.4,8.637521]
[1744338299750,13.909,1541.8,1541.5,7.3509021]
[1744338300447,20.39523,1541.8,1541.5,0.8637521]
[1744338300752,6.48647,1541.7,1541.4,7.26245]
[1744338301052,13.90899,1541.8,1541.4,7.26236]
[1744338301254,3.0,1542.1,1541.2,4.75916937]
[1744338301255,7.423,1542.1,1541.8,6.48558]
[1744338301551,7.423,1542.1,1541.9,1.423458]
[1744338301715,13.90797,1542.1,1541.7,7.26119]
[1744338302052,6.48524,1542.0,1541.7,0.7749]
[1744338302211,12.97068,1542.0,1541.7,0.7749]
[1744338302658,6.48524,1542.0,1541.7,7.26104]
[1744338302831,20.3926,1542.1,1541.8,0.726104]
[1744338303146,13.90772,1542.1,1541.7,13.74719]
[1744338303339,20.39265,1542.1,1541.7,7.26104]
[1744338303655,6.48524,1542.0,1541.7,0.7749]
[1744338303816,13.90773,1542.1,1541.8,6.48579]
[1744338304015,13.90773,1542.1,1541.8,7.860455]
[1744338304213,6.48473,1542.1,1541.8,7.860455]
[1744338304611,6.48464,1542.2,1541.8,14.346185]
[1744338304817,12.96912,1542.2,1541.8,7.860395]
[1744338305035,69.39721,1542.3,1541.9,6.48536]
[1744338305214,6.48438,1542.2,1541.9,6.48536]
[1744338305548,6.48438,1542.2,1541.8,14.346215]
[1744338306215,12.96894,1542.2,1541.8,7.860375]
[1744338306615,13.99678,1542.4,1542.0,6.4848]
[1744338306855,13.99678,1542.4,1542.0,12.96975]
[1744338307038,13.99678,1542.4,1542.1,0.7749]
[1744338307236,20.48042,1542.4,1542.1,0.7749]
[1744338307857,6.48382,1542.3,1542.1,0.7749]
[1744338308030,13.99664,1542.4,1542.1,0.7749]
[1744338308460,20.48028,1542.4,1542.1,0.7749]
[1744338309756,6.48383,1542.3,1542.1,0.7749]
[1744338310980,8.531877,1542.3,1541.9,6.48543]
[1744338311284,6.48383,1542.3,1541.9,13.74563]
[1744338311888,0.1,1542.4,1542.3,7.30312]
[1744338312073,0.1,1542.4,1542.3,0.8193]
[1744338313679,0.1,1542.4,1542.0,0.8193]
[1744338313680,6.48461,1542.2,1542.0,0.8193]
[1744338313880,6.48466,1542.1,1541.8,0.8113]
[1744338314089,6.48592,1541.8,1541.7,4.75916937]
[1744338314379,6.4855,1541.9,1541.7,4.75916937]
[1744338314583,12.97051,1542.0,1541.7,4.75916937]
[1744338314785,12.97164,1541.9,1541.7,4.75916937]
[1744338314984,6.48592,1541.8,1541.7,4.75916937]
[1744338315373,6.48592,1541.8,1541.4,13.5732126]
[1744338315690,12.97212,1541.8,1541.5,1.35732126]
[1744338315841,6.48592,1541.8,1541.5,1.35732126]
[1744338316267,7.411,1541.9,1541.5,1.35732126]
[1744338316495,7.411,1541.9,1541.7,0.8113]
[1744338316868,6.48541,1542.0,1541.7,0.8113]
[1744338317274,6.48541,1542.0,1541.7,1.79809126]
[1744338317646,6.48606,1541.8,1541.5,7.29841]
[1744338317851,6.48555,1541.9,1541.5,7.29831]
[1744338318060,12.97053,1542.0,1541.5,7.29831]
[1744338318994,6.48595,1541.8,1541.5,7.29831]
[1744338319390,6.48576,1541.9,1541.5,7.29831]
[1744338319692,12.97048,1542.0,1541.6,6.48658]
[1744338320267,6.48515,1542.0,1541.6,6.48658]
[1744338320492,6.48515,1542.0,1541.7,6.48632]
[1744338320693,6.48515,1542.0,1541.6,6.48658]
[1744338320996,12.9705,1542.0,1541.6,6.48658]
[1744338322195,6.48515,1542.0,1541.6,13.93866252]
[1744338322391,6.48472,1542.1,1541.7,7.29727]
[1744338322592,12.96962,1542.1,1541.7,7.29727]
[1744338322758,12.97065,1542.0,1541.7,0.8113]
[1744338322960,12.97142,1541.9,1541.7,2.18989]
[1744338323162,6.48662,1541.7,1541.5,0.8113]
[1744338323378,6.48662,1541.7,1541.2,0.8113]
[1744338323379,6.48732,1541.5,1541.2,0.8113]
[1744338323772,6.48732,1541.5,1541.2,3.8113]
[1744338323973,12.97482,1541.5,1541.2,3.8113]
[1744338324173,6.48732,1541.5,1541.2,3.8113]
[1744338324499,6.48682,1541.6,1541.2,3.8113]
[1744338324500,13.89718,1541.8,1541.5,0.8113]
[1744338324800,20.38331,1541.8,1541.5,0.8113]
[1744338324978,13.89715,1541.8,1541.5,0.8113]
[1744338325604,75.44675482,1542.1,1541.7,6.48596]
[1744338325785,63.026,1542.1,1541.8,0.8113]
[1744338325989,75.99582,1542.1,1541.8,0.8113]
[1744338326193,75.99582,1542.1,1541.8,1.541026]
[1744338326194,69.51087,1542.1,1541.8,1.541026]
[1744338326375,69.51073,1542.1,1541.8,8.026766]
[1744338326695,20.38161,1542.1,1541.8,1.541026]
[1744338327603,6.4851,1542.0,1541.8,1.541026]
[1744338328107,6.48584,1541.9,1541.6,0.7937]
[1744338328677,6.48584,1541.9,1541.6,7.28044]
[1744338329203,12.9703,1542.0,1541.7,0.59949057]
[1744338329779,6.48508,1542.0,1541.7,0.59949057]
[1744338329981,13.89672,1542.1,1541.8,0.7937]
[1744338330379,13.89672,1542.1,1541.8,7.27947]
[1744338330605,6.48472,1542.1,1541.8,7.27947]
[1744338330812,6.58341,1542.4,1542.0,6.48479]
[1744338331108,0.1,1542.4,1542.1,13.76263]
[1744338331404,0.1,1542.4,1542.2,0.90746346]
[1744338332595,0.1,1542.4,1542.1,0.7937]
[1744338332875,7.25204,1542.3,1541.9,7.27906]
[1744338333068,12.96902,1542.2,1541.9,0.7937]
[1744338333381,6.4844,1542.2,1541.9,0.7937]
[1744338333580,0.1,1542.4,1542.1,0.7937]
[1744338333781,0.1,1542.4,1542.3,10.27752]
[1744338333977,1e-05,1542.4,1542.3,28.57705189]
[1744338334181,1e-05,1542.4,1542.3,27.64374581]
[1744338334508,1e-05,1542.4,1542.3,25.30549674]
[1744338335396,1e-05,1542.4,1542.3,25.78952767]
[1744338335985,1e-05,1542.4,1542.3,11.84349674]
[1744338336900,1e-05,1542.4,1542.3,12.32290905]
[1744338337414,1e-05,1542.4,1542.3,19.72390905]
[1744338337768,1e-05,1542.4,1542.3,20.27390905]
[1744338337977,0.395092,1542.6,1542.5,10.79938]
[1744338338272,0.395092,1542.6,1542.5,23.28977258]
[1744338338273,2e-06,1542.6,1542.5,23.28977258]
[1744338338475,0.7525,1543.9,1543.5,6.47852]
[1744338338677,0.7525,1543.9,1543.5,0.7664]
[1744338338914,6.47774,1543.8,1543.5,0.7664]
[1744338339110,8.1535,1543.9,1543.3,0.7664]
[1744338339311,6.47903,1543.5,1543.1,3.7664]
[1744338339604,12.95715,1543.6,1543.1,3.7664]
[1744338339781,6.47822,1543.7,1543.1,3.7664]
[1744338340186,6.47838,1543.6,1543.1,3.7664]
[1744338340511,6.47942,1543.4,1542.9,0.7664]
[1744338340674,6.48046,1543.1,1542.6,0.7664]
[1744338340872,6.48117,1543.0,1542.6,0.7664]
[1744338341553,6.48033,1543.2,1542.7,3.0]
[1744338341813,6.48033,1543.2,1542.6,3.7664]
[1744338341989,7.128743,1543.1,1542.6,0.7664]
[1744338342192,6.48163,1542.9,1542.6,0.7664]
[1744338342507,14.64055,1543.0,1542.6,0.7664]
[1744338342713,8.1596,1543.0,1542.6,0.7664]
[1744338343305,14.64074,1543.0,1542.6,0.7664]
[1744338343703,6.48174,1542.8,1542.5,6.2743326]
[1744338344276,6.48167,1542.9,1542.5,6.2743326]
[1744338344611,16.8174033,1543.0,1542.5,6.2743326]
[1744338344917,6.48149,1542.9,1542.5,6.2743326]
[1744338345119,6.48217,1542.7,1542.5,6.2743326]
[1744338345623,6.48217,1542.7,1542.2,3.7599]
[1744338345925,6.48217,1542.7,1542.2,10.24412]
[1744338346211,8.7096,1543.0,1542.2,10.24412]
[1744338346212,6.48151,1542.9,1542.3,6.48357]
[1744338346387,6.48178,1542.8,1542.2,10.24412]
[1744338346588,6.48151,1542.9,1542.3,7.508152]
[1744338346815,6.48151,1542.9,1542.3,1.024412]
[1744338347113,6.48183,1542.8,1542.3,1.024412]
[1744338347314,6.48183,1542.8,1542.3,7.508182]
[1744338347845,0.7606,1542.6,1542.2,0.7599]
[1744338348046,6.48336,1542.5,1542.2,0.7599]
[1744338348212,7.398,1542.6,1542.2,0.7599]
[1744338348548,7.398,1542.6,1542.2,7.24408]
[1744338348729,6.48202,1542.8,1542.2,7.24386]
[1744338348931,6.48202,1542.8,1542.3,0.724386]
[1744338349335,6.48202,1542.8,1542.3,7.208146]
[1744338349534,6.48202,1542.8,1542.4,3.0]
[1744338349707,19.76664482,1542.9,1542.4,3.0]
[1744338349904,19.76664482,1542.9,1542.5,0.7599]
[1744338350143,12.52471482,1542.9,1542.5,1.13589]
[1744338350721,12.52471482,1542.9,1542.5,7.61861]
[1744338350918,19.00619482,1542.9,1542.5,1.13589]
[1744338351119,6.48175,1542.8,1542.5,1.13589]
[1744338351329,6.48175,1542.8,1542.5,0.7599]
[1744338351737,12.96385,1542.8,1542.5,0.7599]
[1744338351918,6.48175,1542.8,1542.5,0.7599]
[1744338352119,13.87932,1542.9,1542.5,0.7599]
[1744338352323,7.398,1542.9,1542.5,7.24269]
[1744338352518,7.398,1542.9,1542.6,0.724269]
[1744338353325,13.87937,1542.9,1542.6,0.724269]
[1744338353527,20.36097,1542.9,1542.5,0.7599]
[1744338353743,6.48188,1542.8,1542.5,0.7599]
[1744338354063,7.24238,1542.8,1542.3,1.484286]
[1744338354232,7.24238,1542.8,1542.3,7.24343]
[1744338354437,7.398,1542.9,1542.4,4.06573559]
[1744338354645,13.87931,1542.9,1542.6,0.7599]
[1744338354826,7.398,1542.9,1542.6,0.7599]
[1744338355963,7.398,1542.9,1542.6,2.132446]
[1744338356154,6.4811,1543.0,1542.6,2.132446]
[1744338356466,6.47966,1543.3,1542.8,7.31369]
[1744338356758,12.95959,1543.3,1542.8,7.31369]
[1744338356959,6.48047,1543.1,1542.8,0.832]
[1744338357463,12.96123,1543.1,1542.8,0.832]
[1744338357632,2.114823,1543.1,1542.6,0.832]
[1744338357837,6.48195,1542.8,1542.6,0.832]
[1744338358739,6.48137,1542.9,1542.6,0.832]
[1744338359364,7.29854,1543.3,1542.7,0.832]
[1744338359571,6.48013,1543.2,1542.8,2.89721463]
[1744338359739,6.48048,1543.1,1542.7,7.31395]
[1744338359933,6.4809,1543.0,1542.7,0.832]
[1744338360273,6.48235,1542.7,1542.5,0.832]
[1744338360571,6.48179,1542.8,1542.5,0.832]
[1744338360730,12.96383,1542.8,1542.5,0.832]
[1744338360928,6.483,1542.5,1542.1,0.832]
[1744338361159,6.483,1542.5,1542.1,2.169685]
[1744338361365,14.69888,1542.7,1542.2,7.0817426]
[1744338361577,21.18131,1542.7,1542.3,0.832]
[1744338361775,8.2167,1542.7,1542.2,0.5976826]
[1744338361927,6.48382,1542.3,1542.1,0.832]
[1744338362133,6.48351,1542.4,1542.1,0.832]
[1744338362542,7.30143,1542.6,1542.1,0.832]
[1744338362742,0.8187,1542.8,1542.1,1.563708]
[1744338362957,6.48237,1542.7,1542.3,2.89721463]
[1744338363159,0.8187,1542.8,1542.4,7.31521]
[1744338363357,11.60707482,1543.2,1542.4,7.31521]
[1744338363358,6.48036,1543.2,1542.7,6.48192]
[1744338363575,6.48054,1543.1,1542.8,0.832]
[1744338363773,6.48137,1542.9,1542.6,0.832]
[1744338363977,6.48194,1542.8,1542.6,0.832]
[1744338364250,6.4813,1542.9,1542.6,0.832]
[1744338364449,6.48094,1543.0,1542.6,1.563481]
[1744338364650,12.96211,1543.0,1542.6,1.563481]
[1744338364851,8.2097,1543.2,1542.7,6.48204]
[1744338364852,6.48055,1543.1,1542.7,6.48204]
[1744338365082,7.29878,1543.2,1542.6,14.528321]
[1744338365289,6.48079,1543.1,1542.6,8.045831]
[1744338365482,0.8187,1543.2,1542.7,0.8045831]
[1744338365686,0.8187,1543.2,1542.7,0.59838747]
[1744338365687,6.4811,1543.0,1542.7,0.59838747]
[1744338365889,62.973,1543.3,1542.8,0.832]
[1744338365890,69.45265,1543.3,1542.8,0.832]
[1744338366097,69.45265,1543.3,1542.9,6.48114]
[1744338366268,75.93253,1543.3,1542.9,0.59838747]
[1744338366469,7.391,1543.3,1542.9,7.07934747]
[1744338366657,6.48006,1543.2,1543.0,1.30632222]
[1744338366868,13.871,1543.3,1543.0,0.59838747]
[1744338367161,13.87088,1543.3,1542.9,0.59838747]
[1744338367355,13.87088,1543.3,1542.9,7.07943747]
[1744338367599,5.94541482,1543.8,1543.1,0.832]
[1744338367905,6.871122,1544.2,1543.8,0.832]
[1744338368098,6.47702,1544.0,1543.8,0.832]
[1744338368296,6.4771,1543.9,1543.8,0.832]
[1744338368482,6.47755,1543.8,1543.4,0.832]
[1744338368653,6.47843,1543.6,1543.4,0.832]
[1744338368856,6.4792,1543.4,1543.1,0.48917692]
[1744338369154,6.48101,1543.0,1542.8,0.832]
[1744338369392,5.94541482,1543.4,1542.8,7.31344]
[1744338369593,12.95815,1543.5,1542.9,6.48108]
[1744338369778,8.2097,1543.6,1543.0,0.832]
[1744338369955,6.47949,1543.4,1543.0,0.832]
[1744338370155,6.4797,1543.3,1543.0,0.832]
[1744338370374,7.127439,1543.4,1543.0,0.832]